fUSD/lending_fUSD_20251103
["ID","MTS","AMOUNT","RATE_DAILY","PERIOD"]
[392978733,1762192246089,-151.0,0.00036525,31]
[392978734,1762192246098,-151.0,0.00036525,31]
[392978735,1762192246107,-150.93,0.00036525,60]
[392978736,1762192246116,-168.0,0.0003656,2]
[392978737,1762192246125,-4829.73051,0.000366,2]
[392978738,1762192246135,-150.93,0.00036625,60]
[392978739,1762192246145,-519.42,0.00036654,120]
[392978741,1762192246154,-1425.0,0.00036659,2]
[392978742,1762192246163,-340.66451054,0.00036659,30]
[392978743,1762192246172,-557.65619565,0.00036659,30]
[392978744,1762192246181,-500.0,0.0003666,15]
[392978745,1762192246191,-200.0,0.00036669,10]
[392978746,1762192246200,-200.0,0.00036673,10]
[392978747,1762192246209,-200.0,0.00036675,10]
[392978748,1762192246218,-672.44815369,0.00036678,2]
[392978749,1762192246228,-835.74371278,0.00036691,2]
[392978750,1762192246237,-5161.43135385,0.000367,2]
[392978751,1762192246246,-4428.88,0.000367,14]
[392978752,1762192246256,-506.4537,0.000367,22]
[392978753,1762192246317,-1500.0,0.000367,22]
[392978754,1762192246327,-1000.0,0.00036712,2]
[392978755,1762192246336,-150.93,0.00036725,60]
[392978756,1762192246345,-209.39882768,0.00036728,120]
[392978757,1762192246354,-168.0,0.00036737,2]
[392978758,1762192246363,-835.74371278,0.00036746,2]
[392978759,1762192246372,-1425.0,0.0003676,2]
[392978760,1762192246381,-735.48718324,0.00036764,120]
[392978761,1762192246390,-40000.0,0.000368,2]
[392978762,1762192246399,-835.74371278,0.00036801,2]
[392978763,1762192246408,-1425.0,0.00036818,2]
[392978764,1762192246417,-1000.0,0.00036821,120]
[392978765,1762192246427,-5000.0,0.00036821,2]
[392978766,1762192246436,-1425.0,0.00036823,2]
[392978767,1762192246445,-150.93,0.00036825,60]
[392978768,1762192246454,-835.74371278,0.00036856,2]
[392978769,1762192246463,-1425.0,0.00036873,2]
[392978770,1762192246472,-1209.0,0.00036879,20]
[392978771,1762192246483,-209.58,0.000369,2]
[392978772,1762192246492,-1611.2,0.000369,2]
[392978773,1762192246501,-150.0,0.000369,20]
[392978774,1762192246510,-999.0,0.000369,120]
[392978775,1762192246520,-151.0,0.00036907,14]
[392978776,1762192246528,-835.74371278,0.00036911,2]
[392978777,1762192246538,-150.93,0.00036925,60]
[392978778,1762192246546,-500.0,0.00036928,2]
[392978779,1762192246557,-2538.49,0.0003693,2]
[392978780,1762192246566,-415.43,0.0003693,2]
[392978781,1762192246575,-540.50074733,0.00036938,120]
[392978782,1762192246584,-151.40871931,0.00036938,120]
[392978783,1762192246593,-337.86,0.00036939,2]
[392978784,1762192246602,-345.43,0.00036939,2]
[392978785,1762192246612,-1413.42946077,0.0003694,2]
[392978786,1762192246621,-533789.74012014,0.0003695,7]
[392978787,1762192246630,-151.0,0.0003695,31]
[392978788,1762192246639,-151.0,0.0003695,31]
[392978789,1762192246647,-151.0,0.0003695,31]
[392978790,1762192246657,-151.0,0.0003695,31]
[392978791,1762192246666,-151.0,0.0003695,31]
[392978792,1762192246676,-180.410312,0.0003695,31]
[392978793,1762192246685,-198.981655,0.0003695,31]
[392978794,1762192246694,-151.0,0.0003695,31]
[392978795,1762192246703,-151.0,0.0003695,31]
[392978796,1762192246711,-151.0,0.0003695,31]
[392978797,1762192246721,-151.0,0.0003695,31]
[392978798,1762192246730,-151.0,0.0003695,31]
[392978799,1762192246739,-151.0,0.0003695,31]
[392978800,1762192246748,-151.0,0.0003695,31]
[392978801,1762192246757,-151.0,0.0003695,31]
[392978802,1762192246766,-151.0,0.0003695,31]
[392978803,1762192246775,-151.0,0.0003695,31]
[392978804,1762192246785,-151.0,0.0003695,31]
[392978805,1762192246794,-151.0,0.0003695,31]
[392978806,1762192246804,-155.070825,0.0003695,31]
[392978807,1762192246813,-151.0,0.0003695,31]
[392978808,1762192246822,-154.067118,0.0003695,31]
[392978809,1762192246831,-151.0,0.0003695,31]
[392978810,1762192246840,-151.0,0.0003695,31]
[392978811,1762192246849,-151.0,0.0003695,31]
[392978812,1762192246858,-151.0,0.0003695,31]
[392978813,1762192246868,-151.0,0.0003695,31]
[392978814,1762192246877,-151.0,0.0003695,31]
[392978815,1762192246886,-174.073123,0.0003695,31]
[392978816,1762192246896,-174.073123,0.0003695,31]
[392978817,1762192246905,-174.073123,0.0003695,31]
[392978818,1762192246915,-151.0,0.0003695,31]
[392978819,1762192246923,-174.073123,0.0003695,31]
[392978820,1762192246933,-151.0,0.0003695,31]
[392978821,1762192246942,-151.0,0.0003695,31]
[392978822,1762192246951,-151.0,0.0003695,31]
[392978823,1762192246960,-151.0,0.0003695,31]
[392978824,1762192246972,-152.793943,0.0003695,31]
[392978825,1762192246983,-153.31288,0.0003695,31]
[392978826,1762192246992,-151.0,0.0003695,31]
[392978827,1762192247001,-151.0,0.0003695,31]
[392978828,1762192247010,-151.0,0.0003695,31]
[392978829,1762192247020,-151.0,0.0003695,31]
[392978830,1762192247030,-151.0,0.0003695,31]
[392978831,1762192247039,-151.0,0.0003695,7]
[392978832,1762192247052,-151.0,0.0003695,31]
[392978833,1762192247061,-151.0,0.0003695,31]
[392978834,1762192247070,-151.0,0.0003695,31]
[392978835,1762192247079,-151.0,0.0003695,31]
[392978836,1762192247088,-160.559873,0.0003695,31]
[392978837,1762192247097,-151.0,0.0003695,31]
[392978838,1762192247106,-151.0,0.0003695,31]
[392978839,1762192247115,-151.0,0.0003695,31]
[392978840,1762192247127,-524.750449,0.0003695,31]
[392978841,1762192247136,-151.0,0.0003695,31]
[392978842,1762192247145,-151.0,0.0003695,31]
[392978843,1762192247154,-524.750449,0.0003695,31]
[392978844,1762192247163,-151.0,0.0003695,31]
[392978845,1762192247172,-524.750449,0.0003695,31]
[392978846,1762192247181,-151.0,0.0003695,31]
[392978847,1762192247190,-151.0,0.0003695,31]
[392978848,1762192247199,-524.750449,0.0003695,31]
[392978849,1762192247208,-151.0,0.0003695,31]
[392978850,1762192247218,-151.0,0.0003695,31]
[392978851,1762192247227,-648.462301,0.0003695,30]
[392978852,1762192247237,-648.462301,0.0003695,30]
[392978853,1762192247246,-171.509977,0.0003695,31]
[392978854,1762192247255,-648.462301,0.0003695,30]
[392978855,1762192247264,-151.0,0.0003695,31]
[392978856,1762192247273,-648.462301,0.0003695,30]
[392978857,1762192247282,-151.0,0.0003695,31]
[392978858,1762192247291,-151.0,0.0003695,31]
[392978859,1762192247300,-151.0,0.0003695,31]
[392978860,1762192247309,-151.0,0.0003695,31]
[392978861,1762192247319,-151.0,0.0003695,31]
[392978862,1762192247328,-151.0,0.0003695,31]
[392978863,1762192247337,-151.0,0.0003695,31]
[392978864,1762192247347,-273.006367,0.0003695,31]
[392978865,1762192247357,-424.508622,0.0003695,31]
[392978866,1762192247366,-424.508622,0.0003695,31]
[392978867,1762192247375,-151.0,0.0003695,15]
[392978868,1762192247384,-424.508622,0.0003695,31]
[392978869,1762192247394,-159.129974,0.0003695,31]
[392978870,1762192247403,-151.0,0.0003695,15]
[392978871,1762192247413,-424.508622,0.0003695,31]
[392978872,1762192247423,-159.129974,0.0003695,31]
[392978873,1762192247433,-218.979912,0.0003695,31]
[392978874,1762192247442,-159.129974,0.0003695,31]
[392978875,1762192247452,-159.129974,0.0003695,31]
[392978876,1762192247462,-154.050981,0.0003695,31]
[392978877,1762192247471,-1569.6958118,0.00036962,2]
[392978878,1762192247480,-22106.5628004,0.00036962,2]
[392978879,1762192247489,-88379.2758716,0.00036962,2]
[392978880,1762192247500,-1251.360851,0.00036962,2]
[392978881,1762192247509,-167.9729713,0.00036962,2]
[392978882,1762192247520,-155.8182783,0.00036962,2]
[392978883,1762192247529,-200.0,0.00036964,15]
[392978884,1762192247539,-200.0,0.00036964,15]
[392978885,1762192247548,-200.0,0.00036964,15]
[392978886,1762192247557,-207.4,0.00036964,15]
[392978887,1762192247567,-200.0,0.00036964,15]
[392978888,1762192247576,-210.49099063,0.00036964,15]
[392978889,1762192247586,-200.0,0.00036964,15]
[392978890,1762192247595,-250.0,0.00036964,15]
[392978891,1762192247604,-151.0,0.00036964,15]
[392978892,1762192247613,-250.0,0.00036964,15]
[392978893,1762192247623,-250.0,0.00036964,15]
[392978894,1762192247632,-151.0,0.00036964,15]
[392978895,1762192247641,-250.0,0.00036964,15]
[392978896,1762192247650,-151.0,0.00036964,15]
[392978897,1762192247659,-250.0,0.00036964,15]
[392978898,1762192247668,-151.0,0.00036964,15]
[392978899,1762192247677,-250.0,0.00036964,15]
[392978900,1762192247686,-527.71760314,0.00036964,15]
[392978901,1762192247695,-151.0,0.00036964,15]
[392978902,1762192247704,-194.94137108,0.00036964,15]
[392978903,1762192247714,-151.0,0.00036964,15]
[392978904,1762192247723,-151.0,0.00036964,15]
[392978905,1762192247734,-151.0,0.00036964,15]
[392978906,1762192247744,-151.0,0.00036964,15]
[392978907,1762192247753,-151.0,0.00036964,15]
[392978908,1762192247762,-151.0,0.00036964,15]
[392978909,1762192247772,-500.0,0.00036964,15]
[392978910,1762192247781,-500.0,0.00036964,15]
[392978911,1762192247790,-500.0,0.00036964,15]
[392978912,1762192247799,-500.0,0.00036964,15]
[392978913,1762192247809,-500.0,0.00036964,15]
[392978914,1762192247818,-500.0,0.00036964,15]
[392978915,1762192247827,-500.0,0.00036964,15]
[392978916,1762192247837,-500.0,0.00036964,15]
[392978917,1762192247847,-500.0,0.00036964,15]
[392978918,1762192247856,-500.0,0.00036964,15]
[392978919,1762192247865,-500.0,0.00036964,15]
[392978920,1762192247874,-500.0,0.00036964,15]
[392978921,1762192247883,-322.6107,0.00036964,15]
[392978922,1762192247893,-500.0,0.00036964,15]
[392978923,1762192247903,-500.0,0.00036964,15]
[392978924,1762192247913,-412.35116742,0.00036964,15]
[392978925,1762192247922,-500.0,0.00036964,15]
[392978926,1762192247932,-500.0,0.00036964,15]
[392978927,1762192247943,-620.0,0.00036964,15]
[392978928,1762192247952,-152.41656036,0.00036964,15]
[392978929,1762192247962,-500.0,0.00036964,15]
[392978930,1762192247973,-642.94,0.00036964,15]
[392978931,1762192247987,-500.0,0.00036964,15]
[392978932,1762192247997,-666.72878,0.00036964,15]
[392978933,1762192248006,-500.0,0.00036964,15]
[392978934,1762192248016,-691.39774486,0.00036964,15]
[392978935,1762192248027,-716.97946142,0.00036964,15]
[392978936,1762192248036,-500.0,0.00036964,15]
[392978937,1762192248046,-743.50770149,0.00036964,15]
[392978938,1762192248059,-238.04222737,0.00036964,15]
[392978939,1762192248069,-200.0,0.00036964,15]
[392978940,1762192248079,-200.0,0.00036964,15]
[392978941,1762192248089,-200.0,0.00036964,15]
[392978942,1762192248099,-200.0,0.00036964,15]
[392978943,1762192248109,-287.5921815,0.00036964,15]
[392978944,1762192248119,-500.0,0.00036964,15]
[392978945,1762192248129,-322.6107,0.00036964,10]
[392978946,1762192248139,-379.2893,0.00036964,10]
[392978947,1762192248149,-250.0,0.00036964,15]
[392978948,1762192248158,-250.0,0.00036964,15]
[392978949,1762192248168,-250.0,0.00036964,15]
[392978950,1762192248178,-250.0,0.00036964,15]
[392978951,1762192248188,-250.0,0.00036964,15]
[392978952,1762192248197,-250.0,0.00036964,15]
[392978953,1762192248207,-281.79238422,0.00036964,15]
[392978954,1762192248217,-200.0,0.00036965,2]
[392978955,1762192248226,-154.69909821,0.00036965,7]
[392978956,1762192248241,-222.90642399,0.00036965,7]
[392978957,1762192248250,-2000.0,0.00036965,120]
[392978958,1762192248259,-1000.0,0.00036965,30]
[392978959,1762192248269,-1000.0,0.00036965,30]
[392978960,1762192248278,-835.74371278,0.00036966,2]
[392978961,1762192248288,-151.0,0.0003697,14]
[392978962,1762192248298,-1239.0,0.00036972,7]
[392978963,1762192248307,-1239.0,0.00036972,7]
[392978964,1762192248316,-1239.0,0.00036972,7]
[392978965,1762192248326,-1239.0,0.00036972,7]
[392978966,1762192248335,-1239.0,0.00036972,7]
[392978967,1762192248345,-152.0,0.00036972,3]
[392978968,1762192248355,-825.0,0.00036972,3]
[392978969,1762192248364,-825.0,0.00036972,3]
[392978970,1762192248373,-222.08276422,0.00036972,3]
[392978971,1762192248383,-85919.53279053,0.00036973,2]
[392978972,1762192248392,-85919.53279053,0.00036973,2]
[392978973,1762192248401,-85919.53279053,0.00036973,2]
[392978974,1762192248410,-85919.53279053,0.00036973,2]
[392978975,1762192248419,-168.0,0.00036976,2]
[392978976,1762192248429,-1000.0,0.00036985,2]
[392978977,1762192248439,-1000.0,0.00036986,2]
[392978978,1762192248448,-1000.0,0.00036986,2]
[392978979,1762192248458,-163.02875067,0.00037,2]
[392978980,1762192248467,-231101.69379359,0.00037,2]
[392978981,1762192248477,-150.0,0.00037,5]
[392978982,1762192248488,-250.0,0.00037,14]
[392978983,1762192248498,-255.0,0.00037,14]
[392978984,1762192248508,-150.0,0.00037,60]
[392978985,1762192248518,-805.56197311,0.00037,30]
[392978986,1762192248526,-600.0,0.00037,120]
[392978987,1762192248536,-477.5520043,0.00037,120]
[392978988,1762192248546,-1425.0,0.00037004,2]
[392978989,1762192248555,-835.74371278,0.00037021,2]
[392978990,1762192248564,-150.93,0.00037025,60]
[392978991,1762192248574,-159.83907504,0.00037029,15]
[392978992,1762192248584,-174.10839772,0.00037029,2]
[392978993,1762192248593,-803.98548696,0.00037029,2]
[392978994,1762192248602,-208.76484366,0.00037029,2]
[392978995,1762192248612,-340.66,0.00037029,30]
[392978996,1762192248621,-557.65,0.00037029,30]
[392978997,1762192248631,-1425.0,0.0003703,2]
[392978998,1762192248640,-150.99,0.00037033,60]
[392978999,1762192248652,-150.78,0.00037035,60]
[392979000,1762192248661,-1425.0,0.00037051,2]
[392979001,1762192248671,-1425.0,0.00037056,2]
[392979002,1762192248680,-890.41706766,0.000371,2]
[392979003,1762192248689,-151.0,0.00037118,14]
[392979004,1762192248699,-226.0,0.00037121,2]
[392979005,1762192248708,-317.0,0.00037121,2]
[392979006,1762192248718,-181.0,0.00037121,14]
[392979007,1762192248727,-182.94288369,0.00037121,7]
[392979008,1762192248738,-300.0,0.00037124,10]
[392979009,1762192248747,-666.0,0.00037124,10]
[392979010,1762192248757,-300.0,0.00037124,10]
[392979011,1762192248767,-666.0,0.00037124,10]
[392979012,1762192248776,-644.71142354,0.00037125,2]
[392979013,1762192248787,-644.71142354,0.00037125,2]
[392979014,1762192248796,-151.0,0.00037125,31]
[392979015,1762192248806,-151.0,0.00037125,31]
[392979016,1762192248815,-151.0,0.00037125,31]
[392979017,1762192248825,-151.0,0.00037125,31]
[392979018,1762192248834,-151.0,0.00037125,31]
[392979019,1762192248844,-151.0,0.00037125,31]
[392979020,1762192248853,-151.0,0.00037125,31]
[392979021,1762192248863,-151.0,0.00037125,31]
[392979022,1762192248872,-151.0,0.00037125,31]
[392979023,1762192248882,-151.0,0.00037125,31]
[392979024,1762192248891,-151.0,0.00037125,31]
[392979025,1762192248901,-241.850193,0.00037125,31]
[392979026,1762192248910,-151.0,0.00037125,30]
[392979027,1762192248919,-151.0,0.00037125,31]
[392979028,1762192248928,-151.0,0.00037125,31]
[392979029,1762192248938,-151.0,0.00037125,31]
[392979030,1762192248948,-151.0,0.00037125,31]
[392979031,1762192248958,-151.0,0.00037125,31]
[392979032,1762192248967,-151.0,0.00037125,31]
[392979033,1762192248981,-151.0,0.00037125,31]
[392979034,1762192248991,-151.0,0.00037125,31]
[392979035,1762192249000,-151.0,0.00037125,31]
[392979036,1762192249010,-151.0,0.00037125,31]
[392979037,1762192249022,-159.49417,0.00037125,31]
[392979038,1762192249031,-151.0,0.00037125,31]
[392979039,1762192249041,-151.0,0.00037125,31]
[392979040,1762192249052,-151.0,0.00037125,31]
[392979041,1762192249061,-151.0,0.00037125,31]
[392979042,1762192249071,-151.0,0.00037125,31]
[392979043,1762192249080,-151.0,0.00037125,31]
[392979044,1762192249089,-151.0,0.00037125,31]
[392979045,1762192249099,-151.0,0.00037125,31]
[392979046,1762192249108,-151.0,0.00037125,31]
[392979047,1762192249117,-151.0,0.00037125,31]
[392979048,1762192249126,-151.0,0.00037125,31]
[392979049,1762192249136,-151.0,0.00037125,31]
[392979050,1762192249146,-179.933478,0.00037125,31]
[392979051,1762192249155,-151.0,0.00037125,31]
[392979052,1762192249165,-220.794528,0.00037125,31]
[392979053,1762192249175,-151.0,0.00037125,31]
[392979054,1762192249184,-151.0,0.00037125,31]
[392979055,1762192249194,-300.103055,0.00037125,31]
[392979056,1762192249203,-178.052654,0.00037125,31]
[392979057,1762192249213,-151.0,0.00037125,31]
[392979058,1762192249222,-151.0,0.00037125,31]
[392979059,1762192249233,-151.0,0.00037125,31]
[392979060,1762192249242,-257.259689,0.00037125,31]
[392979061,1762192249252,-171.022124,0.00037125,31]
[392979062,1762192249262,-151.0,0.00037125,31]
[392979063,1762192249272,-151.0,0.00037125,31]
[392979064,1762192249281,-171.022124,0.00037125,31]
[392979065,1762192249290,-171.022124,0.00037125,31]
[392979066,1762192249300,-171.022124,0.00037125,31]
[392979067,1762192249309,-171.022124,0.00037125,31]
[392979068,1762192249318,-171.022124,0.00037125,31]
[392979069,1762192249328,-171.022124,0.00037125,31]
[392979070,1762192249338,-171.022124,0.00037125,31]
[392979071,1762192249347,-171.022124,0.00037125,31]
[392979072,1762192249356,-171.022124,0.00037125,31]
[392979073,1762192249365,-171.022124,0.00037125,31]
[392979074,1762192249374,-171.022124,0.00037125,31]
[392979075,1762192249384,-151.0,0.00037125,31]
[392979076,1762192249393,-151.0,0.00037125,31]
[392979077,1762192249404,-151.0,0.00037125,31]
[392979078,1762192249414,-151.0,0.00037125,31]
[392979079,1762192249423,-231.93324,0.00037125,31]
[392979080,1762192249432,-151.0,0.00037125,31]
[392979081,1762192249442,-256.696297,0.00037125,31]
[392979082,1762192249451,-151.0,0.00037125,31]
[392979083,1762192249460,-151.0,0.00037125,31]
[392979084,1762192249470,-151.0,0.00037125,31]
[392979085,1762192249480,-151.0,0.00037125,31]
[392979086,1762192249490,-223.517104,0.00037125,31]
[392979087,1762192249500,-151.0,0.00037125,31]
[392979088,1762192249510,-151.0,0.00037125,31]
[392979089,1762192249520,-151.0,0.00037125,31]
[392979090,1762192249530,-151.0,0.00037125,31]
[392979091,1762192249539,-151.0,0.00037125,31]
[392979092,1762192249549,-151.0,0.00037125,31]
[392979093,1762192249558,-230.554172,0.00037125,31]
[392979094,1762192249568,-151.0,0.00037125,31]
[392979095,1762192249578,-151.0,0.00037125,31]
[392979096,1762192249587,-267.927669,0.00037125,31]
[392979097,1762192249597,-151.0,0.00037125,31]
[392979098,1762192249606,-151.0,0.00037125,31]
[392979099,1762192249615,-151.0,0.00037125,31]
[392979100,1762192249625,-151.0,0.00037125,31]
[392979101,1762192249634,-151.0,0.00037125,31]
[392979102,1762192249644,-236.023466,0.00037125,31]
[392979103,1762192249654,-156.867739,0.00037125,31]
[392979104,1762192249663,-151.0,0.00037125,31]
[392979105,1762192249672,-174.073123,0.00037125,31]
[392979106,1762192249682,-151.0,0.00037125,31]
[392979107,1762192249692,-174.073123,0.00037125,31]
[392979108,1762192249701,-151.0,0.00037125,31]
[392979109,1762192249711,-174.073123,0.00037125,31]
[392979110,1762192249721,-174.073123,0.00037125,31]
[392979111,1762192249731,-174.073123,0.00037125,31]
[392979112,1762192249741,-174.073123,0.00037125,31]
[392979113,1762192249750,-174.073123,0.00037125,31]
[392979114,1762192249760,-174.073123,0.00037125,31]
[392979115,1762192249770,-174.073123,0.00037125,31]
[392979116,1762192249780,-174.073123,0.00037125,31]
[392979117,1762192249791,-174.073123,0.00037125,31]
[392979118,1762192249801,-174.073127,0.00037125,31]
[392979119,1762192249810,-150.93,0.00037125,60]
[392979120,1762192249820,-190.904624,0.00037129,31]
[392979121,1762192249829,-151.0,0.00037129,31]
[392979122,1762192249839,-151.0,0.00037129,31]
[392979123,1762192249849,-151.0,0.00037129,31]
[392979124,1762192249860,-151.0,0.00037129,31]
[392979125,1762192249869,-151.0,0.00037129,31]
[392979126,1762192249879,-151.0,0.00037129,31]
[392979127,1762192249890,-151.0,0.00037129,31]
[392979128,1762192249899,-151.0,0.00037129,31]
[392979129,1762192249909,-151.0,0.00037129,31]
[392979130,1762192249919,-151.0,0.00037129,31]
[392979131,1762192249928,-151.0,0.00037129,31]
[392979132,1762192249938,-151.0,0.00037129,7]
[392979133,1762192249948,-282.594588,0.00037129,31]
[392979134,1762192249959,-151.0,0.00037129,7]
[392979135,1762192249975,-151.160957,0.00037129,7]
[392979136,1762192249986,-151.0,0.00037129,31]
[392979137,1762192249996,-151.0,0.00037129,31]
[392979138,1762192250006,-151.0,0.00037129,31]
[392979139,1762192250017,-151.0,0.00037129,31]
[392979140,1762192250027,-151.0,0.00037129,31]
[392979141,1762192250036,-151.0,0.00037129,31]
[392979142,1762192250046,-151.0,0.00037129,31]
[392979143,1762192250056,-151.0,0.00037129,31]
[392979144,1762192250065,-151.0,0.00037129,31]
[392979145,1762192250075,-151.0,0.00037129,31]
[392979146,1762192250086,-151.0,0.00037129,31]
[392979147,1762192250240,-151.0,0.00037129,31]
[392979148,1762192250250,-151.0,0.00037129,31]
[392979149,1762192250260,-151.0,0.00037129,31]
[392979150,1762192250269,-151.0,0.00037129,31]
[392979151,1762192250279,-151.0,0.00037129,31]
[392979152,1762192250288,-151.0,0.00037129,31]
[392979153,1762192250297,-151.0,0.00037129,31]
[392979154,1762192250306,-524.750449,0.00037129,31]
[392979155,1762192250315,-524.750449,0.00037129,31]
[392979156,1762192250329,-524.750449,0.00037129,31]
[392979157,1762192250341,-151.0,0.00037129,31]
[392979158,1762192250351,-161.608616,0.00037129,31]
[392979159,1762192250362,-524.750449,0.00037129,31]
[392979160,1762192250371,-524.750449,0.00037129,31]
[392979161,1762192250381,-524.750449,0.00037129,31]
[392979162,1762192250389,-191.197817,0.00037129,31]
[392979163,1762192250402,-524.750449,0.00037129,31]
[392979164,1762192250411,-524.750449,0.00037129,31]
[392979165,1762192250420,-151.0,0.00037129,31]
[392979166,1762192250429,-151.0,0.00037129,31]
[392979167,1762192250438,-151.0,0.00037129,31]
[392979168,1762192250447,-524.750449,0.00037129,31]
[392979169,1762192250456,-151.0,0.00037129,31]
[392979170,1762192250465,-151.0,0.00037129,31]
[392979171,1762192250474,-151.0,0.00037129,31]
[392979172,1762192250483,-524.750449,0.00037129,31]
[392979173,1762192250492,-524.750449,0.00037129,31]
[392979174,1762192250501,-217.091704,0.00037129,31]
[392979175,1762192250510,-524.750445,0.00037129,31]
[392979176,1762192250519,-648.462301,0.00037129,30]
[392979177,1762192250529,-648.462301,0.00037129,30]
[392979178,1762192250539,-648.462301,0.00037129,30]
[392979179,1762192250548,-648.462301,0.00037129,30]
[392979180,1762192250558,-648.462301,0.00037129,30]
[392979181,1762192250567,-648.462301,0.00037129,30]
[392979182,1762192250577,-648.462301,0.00037129,30]
[392979183,1762192250586,-648.462301,0.00037129,30]
[392979184,1762192250595,-648.462301,0.00037129,30]
[392979185,1762192250605,-648.462301,0.00037129,30]
[392979186,1762192250614,-648.462301,0.00037129,30]
[392979187,1762192250623,-648.462306,0.00037129,30]
[392979188,1762192250632,-151.0,0.00037129,31]
[392979189,1762192250641,-151.0,0.00037129,31]
[392979190,1762192250651,-178.431257,0.00037129,31]
[392979191,1762192250660,-151.0,0.00037129,31]
[392979192,1762192250669,-151.0,0.00037129,31]
[392979193,1762192250678,-151.0,0.00037129,31]
[392979194,1762192250687,-151.0,0.00037129,31]
[392979195,1762192250696,-151.0,0.00037129,31]
[392979196,1762192250705,-151.0,0.00037129,31]
[392979197,1762192250714,-151.0,0.00037129,31]
[392979198,1762192250724,-151.0,0.00037129,31]
[392979199,1762192250732,-151.0,0.00037129,31]
[392979200,1762192250741,-270.645028,0.00037129,31]
[392979201,1762192250750,-151.0,0.00037129,31]
[392979202,1762192250760,-151.0,0.00037129,31]
[392979203,1762192250770,-151.0,0.00037129,31]
[392979204,1762192250779,-180.47188,0.00037129,31]
[392979205,1762192250788,-424.508622,0.00037129,31]
[392979206,1762192250797,-424.508622,0.00037129,31]
[392979207,1762192250806,-424.508622,0.00037129,31]
[392979208,1762192250815,-424.508622,0.00037129,31]
[392979209,1762192250825,-424.508622,0.00037129,31]
[392979210,1762192250834,-424.508622,0.00037129,31]
[392979211,1762192250843,-151.0,0.00037129,15]
[392979212,1762192250853,-151.0,0.00037129,15]
[392979213,1762192250862,-424.508622,0.00037129,31]
[392979214,1762192250872,-159.129974,0.00037129,31]
[392979215,1762192250882,-424.508622,0.00037129,31]
[392979216,1762192250891,-151.0,0.00037129,15]
[392979217,1762192250901,-424.508622,0.00037129,31]
[392979218,1762192250910,-159.129974,0.00037129,31]
[392979219,1762192250920,-159.129974,0.00037129,31]
[392979220,1762192250929,-151.0,0.00037129,15]
[392979221,1762192250939,-424.508622,0.00037129,31]
[392979222,1762192250948,-151.0,0.00037129,15]
[392979223,1762192250957,-424.508622,0.00037129,31]
[392979224,1762192250967,-261.370454,0.00037129,15]
[392979225,1762192250979,-424.508614,0.00037129,31]
[392979226,1762192250990,-159.129974,0.00037129,31]
[392979227,1762192250999,-159.129974,0.00037129,31]
[392979228,1762192251010,-159.129974,0.00037129,31]
[392979229,1762192251019,-159.129974,0.00037129,31]
[392979230,1762192251028,-159.129974,0.00037129,31]
[392979231,1762192251037,-159.129974,0.00037129,31]
[392979232,1762192251047,-159.129974,0.00037129,31]
[392979233,1762192251056,-159.129974,0.00037129,31]